bitfinex/quotes_BTCUSD_20250119
["timestamp","ask_amount","ask_price","bid_price","bid_amount"]
[1737316033553,1.90231887,105500.0,105490.0,0.75888641]
[1737316033753,1.90231887,105500.0,105490.0,0.79967462]
[1737316037194,1.90231887,105500.0,105490.0,0.75888641]
[1737316037428,1.90231887,105500.0,105490.0,0.79967462]
[1737316041594,1.90231887,105500.0,105490.0,0.84046283]
[1737316042038,1.90231887,105500.0,105490.0,0.84136184]
[1737316042630,1.90231887,105500.0,105490.0,0.86436184]
[1737316044380,1.88336187,105500.0,105490.0,1.05515005]
[1737316044557,1.05968907,105500.0,105490.0,1.20515005]
[1737316044793,0.93158907,105500.0,105490.0,1.20515005]
[1737316045009,0.85348907,105500.0,105490.0,1.23318275]
[1737316045195,0.75870407,105500.0,105490.0,1.23318275]
[1737316045401,0.75415907,105500.0,105490.0,1.23318275]
[1737316045603,0.75415907,105500.0,105490.0,1.16436184]
[1737316045808,0.75415907,105500.0,105490.0,1.01436184]
[1737316046017,0.75415907,105500.0,105490.0,1.16436184]
[1737316046232,0.75415907,105500.0,105490.0,1.14136184]
[1737316046494,0.75415907,105500.0,105490.0,1.18215005]
[1737316046822,0.75415907,105500.0,105490.0,1.41475877]
[1737316047772,0.75415907,105500.0,105490.0,1.16436184]
[1737316048052,0.75415907,105500.0,105490.0,1.1644867]
[1737316048533,0.75415907,105500.0,105490.0,1.20527491]
[1737316049950,0.67833107,105500.0,105490.0,1.20527491]
[1737316050259,0.56458907,105500.0,105490.0,1.20527491]
[1737316051496,0.52667507,105500.0,105490.0,1.20527491]
[1737316051700,0.46980407,105500.0,105490.0,1.20515005]
[1737316052080,0.41293307,105500.0,105490.0,1.20515005]
[1737316052285,0.37501907,105500.0,105490.0,1.20515005]
[1737316052981,0.35606207,105500.0,105490.0,1.20515005]
[1737316053182,0.31814807,105500.0,105490.0,1.20515005]
[1737316056033,0.31814807,105500.0,105490.0,1.28899354]
[1737316056255,0.22336307,105500.0,105490.0,1.28899354]
[1737316056529,0.22336307,105500.0,105490.0,1.31818196]
[1737316056929,0.06997485,105500.0,105490.0,1.31818196]
[1737316057107,0.01310685,105500.0,105490.0,1.31818196]
[1737316057316,8.5e-07,105510.0,105500.0,0.646386]
[1737316057491,8.5e-07,105510.0,105500.0,1.19975155]
[1737316058781,5.4e-07,105510.0,105500.0,1.19975155]
[1737316058988,5.4e-07,105510.0,105500.0,1.41118158]
[1737316060235,5.4e-07,105510.0,105500.0,1.28541635]
[1737316060644,0.0164608,105520.0,105510.0,0.72106294]
[1737316060974,0.01695777,105520.0,105510.0,1.15203386]
[1737316063296,0.01695777,105520.0,105510.0,1.15217913]
[1737316063906,0.01687039,105520.0,105510.0,1.15217913]
[1737316067653,0.01687039,105520.0,105510.0,1.15203386]
[1737316068334,0.0058,105560.0,105550.0,0.244738]
[1737316068531,0.00679004,105560.0,105550.0,0.86508792]
[1737316069450,0.00594127,105560.0,105550.0,0.86508792]
[1737316071385,0.12704127,105560.0,105550.0,0.67560892]
[1737316071686,0.22177327,105560.0,105550.0,0.67560892]
[1737316071806,0.12704127,105560.0,105550.0,0.67560892]
[1737316072406,0.22177327,105560.0,105550.0,0.67560892]
[1737316072993,0.22177327,105560.0,105550.0,0.52560892]
[1737316073385,0.22177327,105560.0,105550.0,0.43187092]
[1737316073618,0.22177327,105560.0,105550.0,0.52661192]
[1737316074423,0.22177327,105560.0,105550.0,0.43187092]
[1737316074625,0.22177327,105560.0,105550.0,0.52661192]
[1737316074870,0.22177327,105560.0,105550.0,0.43187092]
[1737316075255,0.22177327,105560.0,105550.0,0.52661192]
[1737316075462,0.22177327,105560.0,105550.0,0.43187092]
[1737316075832,0.12704127,105560.0,105550.0,0.52661192]
[1737316077017,0.12746927,105560.0,105550.0,0.52661192]
[1737316077241,0.22220127,105560.0,105550.0,0.52661192]
[1737316077392,0.12746927,105560.0,105550.0,0.52661192]
[1737316077599,0.22220127,105560.0,105550.0,0.52661192]
[1737316079234,0.26295445,105560.0,105550.0,0.43187092]
[1737316079454,0.22220127,105560.0,105550.0,0.43187092]
[1737316079660,0.26295445,105560.0,105550.0,0.33263011]
[1737316079884,0.22220127,105560.0,105550.0,0.33263011]
[1737316080080,0.26295445,105560.0,105550.0,0.33263011]
[1737316080288,0.34797186,105560.0,105550.0,0.33263011]
[1737316080456,0.34217186,105560.0,105550.0,0.33263011]
[1737316080660,0.30721868,105560.0,105550.0,0.33263011]
[1737316081431,0.30721868,105560.0,105550.0,0.33283011]
[1737316081642,0.43473397,105560.0,105550.0,0.33283011]
[1737316082024,0.47548715,105560.0,105550.0,0.33283011]
[1737316082257,0.43473397,105560.0,105550.0,0.33283011]
[1737316082968,0.43473397,105560.0,105550.0,0.32783011]
[1737316083174,0.60474526,105560.0,105550.0,0.32783011]
[1737316083820,0.64549844,105560.0,105550.0,0.32783011]
[1737316084458,0.60474526,105560.0,105550.0,0.32783011]
[1737316085820,0.64549844,105560.0,105550.0,0.32783011]
[1737316086299,0.60474526,105560.0,105550.0,0.32783011]
[1737316086440,0.64549844,105560.0,105550.0,0.32783011]
[1737316087402,0.64449844,105560.0,105550.0,0.32783011]
[1737316087607,0.51872785,105560.0,105550.0,0.32783011]
[1737316087747,0.55948103,105560.0,105550.0,0.32783011]
[1737316088953,0.55948103,105560.0,105550.0,0.33083011]
[1737316089097,0.64447985,105560.0,105550.0,0.33083011]
[1737316089308,0.64447985,105560.0,105550.0,0.3317287]
[1737316090572,0.60372667,105560.0,105550.0,0.3317287]
[1737316091526,0.43371538,105560.0,105550.0,0.3317287]
[1737316092002,0.47446856,105560.0,105550.0,0.3317287]
[1737316092559,0.88746255,105560.0,105550.0,0.3317287]
[1737316092771,0.76722128,105560.0,105550.0,0.1174287]
[1737316094740,0.99484323,105560.0,105550.0,0.1174287]
[1737316094946,0.95366205,105560.0,105550.0,0.1174287]
[1737316095150,0.99441523,105560.0,105550.0,0.1174287]
[1737316095867,0.55427917,105560.0,105550.0,0.1174287]
[1737316096475,0.55427917,105560.0,105510.0,0.0008988]
[1737316096476,0.094768,105520.0,105510.0,0.0008988]
[1737316096675,0.39056199,105520.0,105510.0,0.0008988]
[1737316096875,0.094768,105520.0,105510.0,0.0008988]
[1737316097083,0.100568,105520.0,105510.0,0.0008988]
[1737316097442,0.100568,105520.0,105510.0,0.2852188]
[1737316097567,0.100568,105520.0,105510.0,0.3799938]
[1737316097568,0.0058,105520.0,105510.0,0.3799938]
[1737316097781,0.0058,105520.0,105510.0,0.38013507]
[1737316098385,0.51629893,105520.0,105510.0,0.38013507]
[1737316098589,0.51629893,105520.0,105510.0,0.42753518]
[1737316098797,0.61106693,105520.0,105510.0,0.33276018]
[1737316099440,0.31324867,105520.0,105510.0,0.33276018]
[1737316100242,0.31324867,105520.0,105510.0,0.42753718]
[1737316100726,0.31324867,105520.0,105510.0,0.33276018]
[1737316101084,0.30744867,105520.0,105510.0,0.33276018]
[1737316101257,0.31324867,105520.0,105510.0,0.33276018]
[1737316102855,0.48341498,105520.0,105510.0,0.33276018]
[1737316104013,0.48341498,105520.0,105510.0,0.33376018]
[1737316105468,0.31324867,105520.0,105510.0,0.33376018]
[1737316106708,0.48341498,105520.0,105510.0,0.33376018]
[1737316107849,0.33341498,105520.0,105510.0,0.33376018]
[1737316108061,0.46106693,105520.0,105510.0,0.33376018]
[1737316109246,0.07819273,105520.0,105510.0,0.33376018]
[1737316109684,0.0768727,105520.0,105510.0,0.33376018]
[1737316109879,0.100568,105520.0,105510.0,0.33376018]
[1737316110372,0.18544446,105520.0,105510.0,0.33376018]
[1737316114349,0.18540446,105520.0,105510.0,0.33376018]
[1737316115374,0.08487646,105520.0,105510.0,0.71783094]
[1737316115568,0.09067646,105520.0,105510.0,0.65567799]
[1737316115777,0.08487646,105520.0,105510.0,0.80567799]
[1737316115999,0.08487646,105520.0,105510.0,1.01783094]
[1737316117310,0.08487646,105520.0,105510.0,1.17998389]
[1737316117566,0.3828742,105530.0,105520.0,0.53482095]
[1737316117769,0.3828742,105530.0,105520.0,0.78406176]
[1737316117988,0.08484824,105540.0,105530.0,0.322659]
[1737316118192,0.0004279,105560.0,105550.0,0.222641]
[1737316118367,0.0004279,105560.0,105550.0,0.60611181]
[1737316118669,0.0004279,105560.0,105550.0,0.65351192]
[1737316123099,0.0004279,105560.0,105550.0,0.71566487]
[1737316123354,0.0004279,105560.0,105550.0,0.65351192]
[1737316126666,0.0004279,105560.0,105550.0,0.65361192]
[1737316127108,0.0004279,105560.0,105550.0,0.71576487]
[1737316127649,0.0004279,105560.0,105550.0,0.96576487]
[1737316127806,0.0004279,105560.0,105550.0,1.11576487]
[1737316130487,0.0004279,105560.0,105550.0,1.13876487]
[1737316130907,0.0004279,105560.0,105550.0,1.15035216]
[1737316133643,0.0058,105590.0,105580.0,0.094707]
[1737316133843,0.0058,105590.0,105580.0,0.52548792]
[1737316134043,0.2767277,105600.0,105590.0,0.094705]
[1737316134244,0.2826689,105600.0,105590.0,0.47806581]
[1737316134453,0.2826689,105600.0,105590.0,0.52546592]
[1737316135048,0.28182027,105600.0,105590.0,0.43076092]
[1737316135257,0.28182027,105600.0,105590.0,0.33152011]
[1737316136004,0.28182027,105600.0,105590.0,0.29818678]
[1737316136460,0.27602027,105600.0,105590.0,0.29818678]
[1737316136661,0.09238627,105600.0,105590.0,0.39289178]
[1737316136886,0.09238627,105600.0,105590.0,0.29818678]
[1737316137191,0.09238627,105600.0,105590.0,0.39289178]
[1737316137503,0.09238627,105600.0,105590.0,0.39742759]
[1737316137681,0.09238627,105600.0,105590.0,0.56773259]
[1737316139514,0.1005972,105600.0,105590.0,0.56773259]
[1737316140701,0.0059012,105600.0,105590.0,0.61513259]
[1737316142272,0.0001412,105600.0,105590.0,0.61513259]
[1737316142479,0.0059012,105600.0,105590.0,0.61513259]
[1737316143100,0.0059012,105600.0,105590.0,0.61523259]
[1737316144687,0.0058612,105600.0,105590.0,0.61523259]
[1737316146137,0.02001225,105600.0,105590.0,0.61523259]
[1737316148142,0.0001012,105600.0,105590.0,0.61523259]
[1737316148341,0.0058612,105600.0,105590.0,0.61523259]
[1737316148545,0.0058612,105600.0,105590.0,0.61613076]
[1737316148770,0.0062889,105600.0,105590.0,0.61613076]
[1737316149690,0.1009849,105600.0,105590.0,0.61613076]
[1737316150768,0.1239849,105600.0,105590.0,0.61613076]
[1737316150963,0.0292889,105600.0,105590.0,0.61613076]
[1737316152365,0.1239849,105600.0,105590.0,0.54053076]
[1737316152570,0.0292889,105600.0,105590.0,0.54053076]
[1737316152924,0.1239849,105600.0,105590.0,0.34658495]
[1737316153121,0.1239849,105600.0,105590.0,0.29918495]
[1737316154104,0.0292889,105600.0,105590.0,0.39388995]
[1737316154433,0.0292889,105600.0,105590.0,0.49313076]
[1737316156957,0.1239849,105600.0,105590.0,0.39388995]
[1737316157655,0.1239849,105600.0,105590.0,0.29918495]
[1737316159121,0.1239849,105600.0,105590.0,0.39388995]
[1737316160103,0.1229849,105600.0,105590.0,0.29918495]
[1737316161153,0.1234126,105600.0,105590.0,0.29918495]
[1737316161357,0.33545626,105600.0,105590.0,0.29918495]
[1737316162664,0.50513789,105600.0,105590.0,0.29918495]
[1737316163617,0.50513789,105600.0,105590.0,0.39388995]
[1737316164060,0.63245749,105600.0,105590.0,0.39388995]
[1737316165308,0.50519627,105600.0,105590.0,0.39388995]
[1737316166568,0.81920859,105600.0,105590.0,0.39388995]
[1737316167587,1.04590859,105600.0,105590.0,0.29918495]
[1737316167800,0.73189627,105600.0,105590.0,0.29918495]
[1737316168726,1.06745444,105600.0,105590.0,0.29918495]
[1737316168907,0.89777281,105600.0,105590.0,0.29918495]
[1737316170130,0.95748096,105600.0,105590.0,0.29918495]
[1737316170345,0.95068096,105600.0,105590.0,0.29918495]
[1737316171520,0.63645036,105600.0,105590.0,0.29918495]
[1737316174741,0.65133884,105600.0,105590.0,0.29918495]
[1737316177660,0.64557884,105600.0,105590.0,0.29918495]
[1737316177842,0.65133884,105600.0,105590.0,0.29918495]
[1737316179701,0.57463884,105600.0,105590.0,0.29918495]
[1737316179897,0.56887884,105600.0,105590.0,0.29918495]
[1737316180041,0.57463884,105600.0,105590.0,0.29918495]
[1737316182439,0.83012496,105600.0,105590.0,0.29918495]
[1737316182645,0.83012496,105600.0,105590.0,0.29914495]
[1737316183267,0.82436496,105600.0,105590.0,0.29914495]
[1737316183490,0.67436496,105600.0,105590.0,0.37694495]
[1737316183633,0.68012496,105600.0,105590.0,0.47164995]
[1737316183828,0.3937872,105600.0,105590.0,0.47164995]
[1737316184033,0.37889872,105600.0,105590.0,0.51734995]
[1737316185328,0.37889872,105600.0,105590.0,0.42264495]
[1737316185506,0.27844272,105600.0,105590.0,0.51734995]
[1737316185640,0.28420272,105600.0,105590.0,0.51734995]
[1737316186153,0.37889872,105600.0,105590.0,0.51734995]
[1737316187794,0.50659522,105600.0,105590.0,0.51734995]
[1737316188989,0.41189922,105600.0,105590.0,0.51734995]
[1737316189271,0.38937032,105600.0,105590.0,0.61659076]
[1737316190502,0.48406632,105600.0,105590.0,0.61659076]
[1737316191289,0.48406632,105600.0,105590.0,0.61642419]
[1737316197295,0.61179919,105600.0,105590.0,0.61642419]
[1737316200348,0.63479919,105600.0,105590.0,0.42247838]
[1737316201055,0.63479919,105600.0,105590.0,0.51718338]
[1737316201627,0.33676293,105600.0,105590.0,0.51718338]
[1737316202913,0.24206693,105600.0,105590.0,0.51718338]
[1737316203315,0.33676293,105600.0,105590.0,0.51718338]
[1737316203906,0.24206693,105600.0,105590.0,0.51718338]
[1737316204356,0.54006734,105600.0,105590.0,0.51718338]
[1737316204860,0.51130734,105600.0,105590.0,0.65715938]
[1737316205062,0.51706734,105600.0,105590.0,0.65715938]
[1737316205269,0.51706734,105600.0,105590.0,0.61642419]
[1737316205500,0.60220683,105600.0,105590.0,0.61642419]
[1737316206294,0.59644683,105600.0,105590.0,0.61642419]
[1737316206447,0.60220683,105600.0,105590.0,0.61642419]
[1737316206652,0.60220683,105600.0,105590.0,0.80715938]
[1737316207254,0.59644683,105600.0,105590.0,0.80715938]
[1737316207795,0.21328165,105600.0,105590.0,0.80715938]
[1737316208879,0.08556719,105600.0,105590.0,0.80715938]
[1737316209300,0.08556719,105600.0,105590.0,0.81871452]
[1737316209773,0.08556719,105600.0,105590.0,0.81887593]
[1737316209974,0.0004277,105600.0,105590.0,0.81887593]
[1737316210748,0.21178461,105610.0,105600.0,0.220196]
[1737316210966,0.21183424,105610.0,105600.0,0.72520211]
[1737316212647,0.22602272,105610.0,105600.0,0.72520211]
[1737316212849,0.0993776,105610.0,105600.0,0.72520211]
[1737316214391,0.0993776,105610.0,105600.0,0.68446692]
[1737316216074,0.2170656,105610.0,105600.0,0.68446692]
[1737316217168,0.2170656,105610.0,105600.0,0.58977092]
[1737316217375,0.2170656,105610.0,105600.0,0.41273011]
[1737316217715,0.20863712,105610.0,105600.0,0.41273011]
[1737316218520,0.50666281,105610.0,105600.0,0.41273011]
[1737316219103,0.50709091,105610.0,105600.0,0.41273011]
[1737316224902,0.41240291,105610.0,105600.0,0.58572611]
[1737316225535,0.24211696,105610.0,105600.0,0.58572611]
[1737316226282,0.23635696,105610.0,105600.0,0.68496692]
[1737316226488,0.24211696,105610.0,105600.0,0.68496692]
[1737316227107,0.45487851,105610.0,105600.0,0.68496692]
[1737316227469,0.45487851,105610.0,105600.0,0.67496692]
[1737316228072,0.54002209,105610.0,105600.0,0.67496692]
[1737316228814,0.51702209,105610.0,105600.0,0.67496692]
[1737316229866,0.51702209,105610.0,105600.0,0.68681495]
[1737316230463,0.51702209,105610.0,105600.0,0.68771396]
[1737316231344,0.16702209,105610.0,105600.0,0.68771396]
[1737316232083,0.18121818,105610.0,105600.0,0.68771396]
[1737316232205,0.09934098,105610.0,105600.0,0.68771396]
[1737316232954,0.09934098,105610.0,105600.0,0.67586593]
[1737316236943,0.09934098,105610.0,105600.0,0.87586593]
[1737316241929,0.22709223,105610.0,105600.0,0.87586593]
[1737316242338,0.22752033,105610.0,105600.0,0.87586593]
[1737316242613,0.21332424,105610.0,105600.0,0.87586593]
[1737316242839,0.21291345,105610.0,105600.0,0.87586593]
[1737316243137,0.51140383,105610.0,105600.0,0.87586593]
[1737316243346,0.51140383,105610.0,105600.0,0.88771396]
[1737316243688,0.53440383,105610.0,105600.0,0.88771396]
[1737316246167,0.62909183,105610.0,105600.0,0.88771396]
[1737316246977,0.53440383,105610.0,105600.0,0.88771396]
[1737316247506,0.62909183,105610.0,105600.0,0.88771396]
[1737316247904,0.62909183,105610.0,105600.0,0.78847315]
[1737316248847,0.62909183,105610.0,105600.0,0.77662512]
[1737316249714,0.50134058,105610.0,105600.0,0.77662512]
[1737316251315,0.81585501,105610.0,105600.0,0.77662512]
[1737316252060,0.72116701,105610.0,105600.0,0.77662512]
[1737316252221,0.81585501,105610.0,105600.0,0.77662512]
[1737316252568,0.50134058,105610.0,105600.0,0.77662512]
[1737316253471,0.40665258,105610.0,105600.0,0.77662512]
[1737316254355,0.50134058,105610.0,105600.0,0.77662512]
[1737316254572,0.40665258,105610.0,105600.0,0.77662512]
[1737316254932,0.50134058,105610.0,105600.0,0.77662512]
[1737316255133,0.40665258,105610.0,105600.0,0.78847328]
[1737316256627,0.50134058,105610.0,105600.0,0.78847328]
[1737316256814,0.40665258,105610.0,105600.0,0.78847328]
[1737316257021,0.40661258,105610.0,105600.0,0.78847328]
[1737316258815,0.50130058,105610.0,105600.0,0.78847328]
[1737316259298,0.40661258,105610.0,105600.0,0.78847328]
[1737316259518,0.50130058,105610.0,105600.0,0.78847328]
[1737316261428,0.50706058,105610.0,105600.0,0.78847328]
[1737316262206,0.33097425,105610.0,105600.0,0.78847328]
[1737316262431,0.33673425,105610.0,105600.0,0.78847328]
[1737316262669,0.33673425,105610.0,105600.0,0.6620401]
[1737316263133,0.41483425,105610.0,105600.0,0.4890441]
[1737316263376,0.72368319,105610.0,105600.0,0.4890441]
[1737316263640,0.65134319,105610.0,105600.0,0.4890441]
[1737316264126,0.65134319,105610.0,105600.0,0.47719594]
[1737316264616,0.50719918,105610.0,105600.0,0.47719594]
[1737316265086,0.50719918,105610.0,105600.0,0.57189194]
[1737316265343,0.50719918,105610.0,105600.0,0.47719594]
[1737316265823,0.58529918,105610.0,105600.0,0.47719594]
[1737316266054,0.4221564,105610.0,105600.0,0.47719594]
[1737316266862,0.63505455,105610.0,105600.0,0.47719594]
[1737316268791,0.62929455,105610.0,105600.0,0.47719594]
[1737316268999,0.63505455,105610.0,105600.0,0.47719594]
[1737316271282,0.64619472,105610.0,105600.0,0.47719594]
[1737316274167,0.84467634,105610.0,105600.0,0.47719594]
[1737316274368,0.82353553,105610.0,105600.0,0.47719594]
[1737316274787,0.97353553,105610.0,105600.0,0.47719594]
[1737316274964,0.84568016,105610.0,105600.0,0.47719594]
[1737316275889,0.66833935,105610.0,105600.0,0.47719594]
[1737316276252,0.54046239,105610.0,105600.0,0.47719594]
[1737316277563,0.83309539,105610.0,105600.0,0.47719594]
[1737316277925,0.83305239,105610.0,105600.0,0.47719594]
[1737316279128,0.54041939,105610.0,105600.0,0.47719594]
[1737316281363,0.61851939,105610.0,105600.0,0.47719594]
[1737316281665,0.54041939,105610.0,105600.0,0.47719594]
[1737316282274,0.54037639,105610.0,105600.0,0.47719594]
[1737316282882,0.7533287,105610.0,105600.0,0.47719594]
[1737316283296,0.74218853,105610.0,105600.0,0.47719594]
[1737316283801,0.48670241,105610.0,105600.0,0.47719594]
[1737316284009,0.33094241,105610.0,105600.0,0.64709194]
[1737316284220,0.33670241,105610.0,105600.0,0.64709194]
[1737316285287,0.50705586,105610.0,105600.0,0.64709194]
[1737316286301,0.41236786,105610.0,105600.0,0.64709194]
[1737316286507,0.50705586,105610.0,105600.0,0.64709194]
[1737316288184,0.71999084,105610.0,105600.0,0.64709194]
[1737316289005,0.59654284,105610.0,105600.0,0.83226794]
[1737316289218,0.59654284,105610.0,105600.0,0.87300313]
[1737316289396,0.59654284,105610.0,105600.0,1.02300313]
[1737316289595,0.59654284,105610.0,105600.0,0.98226794]
[1737316290041,0.59654284,105610.0,105600.0,1.02300313]
[1737316290250,0.59654284,105610.0,105600.0,0.98226794]
[1737316290844,0.0003021,105610.0,105600.0,1.02300313]
[1737316291381,0.0003021,105610.0,105600.0,0.98226794]
[1737316291627,0.0003021,105610.0,105600.0,1.02300313]
[1737316292432,0.0003021,105610.0,105600.0,1.03400285]
[1737316292984,0.0003021,105610.0,105600.0,0.99326766]
[1737316293367,0.0003021,105610.0,105600.0,1.03400285]
[1737316293673,0.0003021,105610.0,105600.0,0.99326766]
[1737316298462,0.0003021,105610.0,105600.0,1.01267034]
[1737316303951,0.0003021,105610.0,105600.0,0.97193515]
[1737316304085,0.0003021,105610.0,105600.0,1.01267034]
[1737316304291,0.0003021,105610.0,105600.0,1.05053234]
[1737316306392,0.0003021,105610.0,105600.0,1.00979715]
[1737316308313,0.0003021,105610.0,105600.0,1.05053234]
[1737316309046,0.0003021,105610.0,105600.0,1.00979715]
[1737316309250,0.0003021,105610.0,105600.0,1.05053234]
[1737316309995,0.0003021,105610.0,105600.0,1.24126753]
[1737316311816,0.0003021,105610.0,105600.0,1.25311347]
[1737316312031,0.0003021,105610.0,105600.0,1.42452975]
[1737316312245,0.1004281,105620.0,105610.0,0.54845838]
[1737316312453,0.1004281,105620.0,105610.0,0.64769919]
[1737316312622,0.1004281,105620.0,105610.0,1.1014393]
[1737316313323,0.0814921,105620.0,105610.0,1.11328524]
[1737316315831,0.0809921,105620.0,105610.0,1.11328524]
[1737316319781,0.0804921,105620.0,105610.0,1.11328524]
[1737316322573,0.0804921,105620.0,105610.0,1.07255005]
[1737316322757,0.0804921,105620.0,105610.0,1.07250705]
[1737316323807,0.0804921,105620.0,105610.0,1.11324224]
[1737316324123,0.0804921,105620.0,105610.0,1.11334224]
[1737316329750,0.0804921,105620.0,105610.0,0.93187186]
[1737316330065,0.0804921,105620.0,105610.0,0.96076111]
[1737316330838,0.0804921,105620.0,105610.0,0.96072111]
[1737316331235,0.0804921,105620.0,105610.0,0.94768592]
[1737316331446,0.0804921,105620.0,105610.0,0.79768592]
[1737316331845,0.1569921,105620.0,105610.0,0.79768592]
[1737316332068,0.2516711,105620.0,105610.0,0.55308092]
[1737316332245,0.2516711,105620.0,105610.0,0.45384011]
[1737316332448,0.2746711,105620.0,105610.0,0.54852811]
[1737316332654,0.0804921,105620.0,105610.0,0.83846111]
[1737316332857,0.0804921,105620.0,105610.0,0.95973429]
[1737316333267,0.0804921,105620.0,105610.0,1.03663429]
[1737316333523,0.0804921,105620.0,105610.0,1.18663429]
[1737316333722,0.0804921,105620.0,105610.0,1.1875333]
[1737316334578,0.0804921,105620.0,105610.0,1.2347333]
[1737316336430,0.0804921,105620.0,105610.0,1.26763575]
[1737316337396,0.0804921,105620.0,105610.0,1.2347333]
[1737316338316,0.0804921,105620.0,105610.0,1.2357333]
[1737316338653,0.0804921,105620.0,105610.0,1.26863575]
[1737316339051,0.0804921,105620.0,105610.0,1.2357333]
[1737316339996,0.0804921,105620.0,105610.0,1.2367333]
[1737316340268,0.0804921,105620.0,105610.0,1.26963575]
[1737316340465,0.0804921,105620.0,105610.0,1.2367333]
[1737316342041,0.1164609,105630.0,105620.0,0.468736]
[1737316342253,0.02386801,105630.0,105620.0,1.17860611]
[1737316342649,0.10035055,105640.0,105630.0,0.768727]
[1737316342650,0.04355455,105640.0,105630.0,0.768727]
[1737316342880,0.16063706,105650.0,105640.0,0.249957]
[1737316343207,0.61106675,105660.0,105650.0,0.641709]
[1737316343363,0.61111635,105660.0,105650.0,1.46859666]
[1737316343568,0.10053789,105670.0,105660.0,0.7917]
[1737316343569,0.09549308,105670.0,105660.0,0.7917]
[1737316343762,0.37546612,105680.0,105670.0,0.768691]
[1737316343998,0.37551572,105680.0,105670.0,1.38987315]
[1737316344153,0.36826318,105690.0,105680.0,0.249957]
[1737316344513,0.06915686,105700.0,105690.0,0.494573]
[1737316344714,0.06915686,105700.0,105690.0,0.99993381]
[1737316344916,0.06915686,105700.0,105690.0,1.12395055]
[1737316345070,0.06915686,105700.0,105690.0,0.86476929]
[1737316345284,0.06915686,105700.0,105690.0,0.95938529]
[1737316345488,0.06915686,105700.0,105690.0,1.17135066]
[1737316345920,0.06915686,105700.0,105690.0,1.25530764]
[1737316346318,0.06915686,105700.0,105690.0,1.26633892]
[1737316347258,0.06915686,105700.0,105690.0,1.36114194]
[1737316348453,0.06915686,105700.0,105690.0,1.9341072]
[1737316348858,0.10272707,105710.0,105700.0,0.40657237]
[1737316349058,0.10272707,105710.0,105700.0,0.95930329]
[1737316350066,0.10272707,105710.0,105700.0,0.89729492]
[1737316350672,0.10272707,105710.0,105700.0,0.80268792]
[1737316350929,0.10272707,105710.0,105700.0,0.70268792]
[1737316351152,0.10272707,105710.0,105700.0,0.79729492]
[1737316351475,0.10272707,105710.0,105700.0,0.89729492]
[1737316351674,0.10272707,105710.0,105700.0,1.04729492]
[1737316352853,0.10272707,105710.0,105700.0,1.10930329]
[1737316353234,0.04918858,105710.0,105700.0,1.10930329]
[1737316354202,0.04918858,105710.0,105700.0,0.95934629]
[1737316354442,0.04918858,105710.0,105700.0,1.10930329]
[1737316355679,0.04923818,105710.0,105700.0,1.10930329]
[1737316356480,0.04923818,105710.0,105700.0,1.13230329]
[1737316356694,0.04923818,105710.0,105700.0,1.15150115]
[1737316357715,0.04923818,105710.0,105700.0,1.06739095]
[1737316358080,0.04923818,105710.0,105700.0,0.74823609]
[1737316358603,0.04923818,105710.0,105700.0,0.96020146]
[1737316358760,0.04923818,105710.0,105700.0,0.79819309]
[1737316358968,0.04823818,105710.0,105700.0,0.96020146]
[1737316359916,0.04823818,105710.0,105700.0,0.98320146]
[1737316362389,0.04823818,105710.0,105700.0,1.13320146]
[1737316365689,1.8e-07,105710.0,105700.0,1.19520983]
[1737316365894,1.8e-07,105710.0,105700.0,1.19061146]
[1737316366091,0.09942828,105720.0,105710.0,0.42956337]
[1737316366291,0.09942828,105720.0,105710.0,0.93487418]
[1737316366491,0.09942828,105720.0,105710.0,0.98227429]
[1737316367125,0.09942828,105720.0,105710.0,1.19428266]
[1737316367299,0.09942828,105720.0,105710.0,1.12644429]
[1737316367628,0.09942828,105720.0,105710.0,1.11655629]
[1737316369232,0.08051028,105720.0,105710.0,1.17856466]
[1737316369435,0.08051028,105720.0,105710.0,1.11655629]
[1737316370387,0.08051028,105720.0,105710.0,1.12725615]
[1737316370627,5e-07,105720.0,105710.0,1.12725615]
[1737316371881,5e-07,105720.0,105710.0,1.18926452]
[1737316372082,5e-07,105720.0,105710.0,1.33926452]
[1737316372809,0.10194419,105740.0,105730.0,0.651819]
[1737316373011,0.0976173,105740.0,105730.0,1.26647829]
[1737316373219,0.23613501,105750.0,105730.0,1.17189829]
[1737316373422,0.004359,105750.0,105740.0,0.55301295]
[1737316373630,0.004359,105750.0,105740.0,0.53745929]
[1737316373830,0.004359,105750.0,105740.0,0.96644929]
[1737316374245,0.062179,105760.0,105750.0,0.478801]
[1737316374453,0.062179,105760.0,105750.0,1.30541866]
[1737316374454,0.02450575,105760.0,105750.0,1.30541866]
[1737316374660,0.02450575,105760.0,105750.0,1.15541866]
[1737316374861,0.02450575,105760.0,105750.0,1.30541866]
[1737316375067,0.02450575,105760.0,105750.0,1.04417966]
[1737316375275,0.02450575,105760.0,105750.0,1.32841866]
[1737316376281,7.5e-07,105760.0,105750.0,1.32841866]
[1737316376477,7.5e-07,105760.0,105750.0,1.32941866]
[1737316376811,7.5e-07,105760.0,105750.0,1.17941866]
[1737316377389,7.5e-07,105760.0,105750.0,1.05540192]
[1737316377705,7.5e-07,105760.0,105750.0,0.98317129]
[1737316377906,7.5e-07,105760.0,105750.0,0.96741029]
[1737316378174,7.5e-07,105760.0,105750.0,0.78240192]
[1737316378381,7.5e-07,105760.0,105750.0,0.59140292]
[1737316378586,0.17245375,105760.0,105750.0,0.55360092]
[1737316379288,0.23331475,105760.0,105750.0,0.32626011]
[1737316379516,0.46755375,105760.0,105750.0,0.07006011]
[1737316379703,0.094589,105720.0,105710.0,0.66098282]
[1737316379896,0.094589,105720.0,105710.0,0.19383181]
[1737316380253,0.094589,105720.0,105710.0,0.23165281]
[1737316380596,0.472935,105730.0,105710.0,0.55598482]
[1737316380805,0.094589,105720.0,105710.0,0.38451338]
[1737316380954,0.094589,105720.0,105710.0,0.36679082]
[1737316381152,0.47298452,105730.0,105710.0,0.55598382]
[1737316381346,0.28381052,105730.0,105720.0,0.09924081]
[1737316381550,0.28381052,105730.0,105720.0,0.09424081]
[1737316382826,0.28381052,105730.0,105720.0,0.18977563]
[1737316383029,4.952e-05,105730.0,105720.0,0.43985892]
[1737316383210,4.952e-05,105730.0,105720.0,0.4389131]
[1737316383408,4.952e-05,105730.0,105720.0,0.32306881]
[1737316384282,4.952e-05,105730.0,105720.0,0.34606881]
[1737316384703,4.952e-05,105730.0,105720.0,0.38032881]
[1737316385305,4.952e-05,105730.0,105720.0,0.35732881]
[1737316388330,4.952e-05,105730.0,105720.0,0.35742881]
[1737316389681,0.66273652,105750.0,105730.0,0.283729]
[1737316389858,0.28446452,105750.0,105740.0,0.09924081]
[1737316390200,0.094571,105740.0,105730.0,0.03475603]
[1737316391849,0.110332,105740.0,105730.0,0.03475603]
[1737316392849,0.015761,105730.0,105720.0,0.0001]
[1737316393003,0.383741,105730.0,105720.0,0.00099901]
[1737316393374,0.36798,105730.0,105720.0,0.00099901]
[1737316393582,0.383741,105730.0,105720.0,0.00099901]
[1737316393791,0.36798,105730.0,105720.0,0.00099901]
[1737316394191,0.3737,105730.0,105720.0,0.00099901]
[1737316395405,0.45793904,105730.0,105720.0,0.04827901]